fUSD/lending_fUSD_20241107
["ID","MTS","AMOUNT","RATE_DAILY","PERIOD"]
[341570867,1731005451166,-500.0,0.00028217,2]
[341570868,1731005451176,-500.0,0.00028217,2]
[341570869,1731005451186,-500.0,0.00028217,2]
[341570870,1731005451196,-500.0,0.00028217,2]
[341570871,1731005451206,-500.0,0.00028217,2]
[341570872,1731005451215,-500.0,0.00028217,2]
[341570873,1731005451227,-532.48989936,0.00028217,2]
[341570874,1731005451237,-500.0,0.00028217,2]
[341570875,1731005451246,-500.0,0.00028217,2]
[341570876,1731005451256,-513.38092366,0.00028217,2]
[341570877,1731005451267,-500.0,0.00028217,2]
[341570878,1731005451277,-196.23904409,0.00028217,2]
[341570879,1731005451287,-500.0,0.00028217,2]
[341570880,1731005451296,-500.0,0.00028217,2]
[341570881,1731005451306,-256.67740018,0.00028217,2]
[341570882,1731005451318,-500.0,0.00028217,2]
[341570883,1731005451334,-500.0,0.00028217,2]
[341570884,1731005451344,-500.0,0.00028217,2]
[341570885,1731005451353,-500.0,0.00028217,2]
[341570886,1731005451363,-204.77121816,0.00028217,2]
[341570887,1731005451373,-500.0,0.00028217,2]
[341570888,1731005451382,-524.04,0.00028217,2]
[341570889,1731005451392,-500.0,0.00028217,2]
[341570890,1731005451402,-500.0,0.00028217,2]
[341570891,1731005451412,-500.0,0.00028217,2]
[341570892,1731005451422,-628.2,0.00028217,2]
[341570893,1731005451432,-500.09142358,0.00028217,2]
[341570894,1731005451442,-516.69168322,0.00028217,2]
[341570895,1731005451452,-500.0,0.00028217,2]
[341570896,1731005451462,-500.0,0.00028217,2]
[341570897,1731005451472,-500.0,0.00028217,2]
[341570898,1731005451483,-500.0,0.00028217,2]
[341570899,1731005451493,-500.0,0.00028217,2]
[341570900,1731005451504,-500.0,0.00028217,2]
[341570901,1731005451514,-500.0,0.00028217,2]
[341570902,1731005451524,-621.35914008,0.00028217,2]
[341570903,1731005451534,-500.0,0.00028217,2]
[341570904,1731005451544,-682.97,0.00028217,2]
[341570905,1731005451554,-500.0,0.00028217,2]
[341570906,1731005451564,-500.0,0.00028217,2]
[341570907,1731005451578,-500.0,0.00028217,2]
[341570908,1731005451588,-500.56785033,0.00028217,2]
[341570909,1731005451598,-500.0,0.00028217,2]
[341570910,1731005451608,-500.0,0.00028217,2]
[341570911,1731005451619,-500.0,0.00028217,2]
[341570912,1731005451628,-892.16,0.00028217,2]
[341570913,1731005451638,-481.01749871,0.00028217,2]
[341570914,1731005451648,-500.0,0.00028217,2]
[341570915,1731005451658,-500.91595683,0.00028217,2]
[341570916,1731005451668,-500.0,0.00028217,2]
[341570917,1731005451679,-500.0,0.00028217,2]
[341570918,1731005451690,-500.89398911,0.00028217,2]
[341570919,1731005451699,-243.37888716,0.00028217,2]
[341570920,1731005451715,-500.0,0.00028217,2]
[341570921,1731005451725,-500.0,0.00028217,2]
[341570922,1731005451734,-500.0,0.00028217,2]
[341570923,1731005451744,-500.0,0.00028217,2]
[341570924,1731005451754,-604.21194322,0.00028217,2]
[341570925,1731005451765,-500.0,0.00028217,2]
[341570926,1731005451775,-500.0,0.00028217,2]
[341570927,1731005451786,-500.0,0.00028217,2]
[341570928,1731005451795,-500.0,0.00028217,2]
[341570929,1731005451805,-500.0,0.00028217,2]
[341570930,1731005451815,-500.0,0.00028217,2]
[341570931,1731005451825,-500.0,0.00028217,2]
[341570932,1731005451834,-601.08,0.00028217,2]
[341570933,1731005451844,-500.0,0.00028217,2]
[341570934,1731005451853,-500.0,0.00028217,2]
[341570935,1731005451863,-500.0,0.00028217,2]
[341570936,1731005451875,-500.0,0.00028217,2]
[341570937,1731005451885,-500.0,0.00028217,2]
[341570938,1731005451895,-500.0,0.00028217,2]
[341570939,1731005451905,-500.0,0.00028217,2]
[341570940,1731005451915,-500.0,0.00028217,2]
[341570941,1731005451927,-500.0,0.00028217,2]
[341570942,1731005451937,-500.0,0.00028217,2]
[341570943,1731005451947,-500.0,0.00028217,2]
[341570944,1731005451958,-500.0,0.00028217,2]
[341570945,1731005451967,-500.0,0.00028217,2]
[341570946,1731005451977,-500.0,0.00028217,2]
[341570947,1731005451987,-500.0,0.00028217,2]
[341570948,1731005451996,-500.0,0.00028217,2]
[341570949,1731005452006,-500.0,0.00028217,2]
[341570950,1731005452015,-500.0,0.00028217,2]
[341570951,1731005452025,-500.0,0.00028217,2]
[341570952,1731005452035,-511.47397514,0.00028217,2]
[341570953,1731005452044,-639.86,0.00028217,2]
[341570954,1731005452054,-500.0,0.00028217,2]
[341570955,1731005452064,-500.0,0.00028217,2]
[341570956,1731005452074,-1540.13,0.00028217,2]
[341570957,1731005452083,-515.81545596,0.00028217,2]
[341570958,1731005452093,-500.0,0.00028217,2]
[341570959,1731005452103,-500.0,0.00028217,2]
[341570960,1731005452113,-501.19711992,0.00028217,2]
[341570961,1731005452123,-582.41,0.00028217,2]
[341570962,1731005452133,-500.0,0.00028217,2]
[341570963,1731005452144,-500.0,0.00028217,2]
[341570964,1731005452154,-500.0,0.00028217,2]
[341570965,1731005452164,-500.0,0.00028217,2]
[341570966,1731005452173,-500.0,0.00028217,2]
[341570967,1731005452183,-500.0,0.00028217,2]
[341570968,1731005452192,-500.0,0.00028217,2]
[341570969,1731005452202,-515.46404071,0.00028217,2]
[341570970,1731005452212,-500.0,0.00028217,2]
[341570971,1731005452222,-500.0,0.00028217,2]
[341570972,1731005452232,-500.0,0.00028217,2]
[341570973,1731005452246,-300.0,0.00028217,2]
[341570974,1731005452257,-500.0,0.00028217,2]
[341570975,1731005452267,-264.25183517,0.00028217,2]
[341570976,1731005452279,-500.0,0.00028217,2]
[341570977,1731005452289,-500.0,0.00028217,2]
[341570978,1731005452299,-500.0,0.00028217,2]
[341570979,1731005452308,-510.53635858,0.00028217,2]
[341570980,1731005452320,-500.0,0.00028217,2]
[341570981,1731005452332,-500.0,0.00028217,2]
[341570982,1731005452342,-500.0,0.00028217,2]
[341570983,1731005452351,-500.0,0.00028217,2]
[341570984,1731005452360,-527.43280531,0.00028217,2]
[341570985,1731005452371,-500.0,0.00028217,2]
[341570986,1731005452380,-500.0,0.00028217,2]
[341570987,1731005452390,-500.0,0.00028217,2]
[341570988,1731005452400,-500.0,0.00028217,2]
[341570989,1731005452410,-500.0,0.00028217,2]
[341570990,1731005452420,-500.0,0.00028217,2]
[341570991,1731005452430,-500.0,0.00028217,2]
[341570992,1731005452440,-500.0,0.00028217,2]
[341570993,1731005452450,-500.0,0.00028217,2]
[341570994,1731005452460,-500.0,0.00028217,2]
[341570995,1731005452470,-500.0,0.00028217,2]
[341570996,1731005452480,-500.0,0.00028217,2]
[341570997,1731005452489,-500.0,0.00028217,2]
[341570998,1731005452499,-669.8,0.00028217,2]
[341570999,1731005452510,-505.66754741,0.00028217,2]
[341571000,1731005452520,-500.0,0.00028217,2]
[341571001,1731005452530,-500.0,0.00028217,2]
[341571002,1731005452540,-500.0,0.00028217,2]
[341571003,1731005452550,-500.0,0.00028217,2]
[341571004,1731005452560,-500.0,0.00028217,2]
[341571005,1731005452569,-500.0,0.00028217,2]
[341571006,1731005452582,-503.25118665,0.00028217,2]
[341571007,1731005452592,-523.73283613,0.00028217,2]
[341571008,1731005452602,-500.0,0.00028217,2]
[341571009,1731005452611,-768.32,0.00028217,2]
[341571010,1731005452621,-500.0,0.00028217,2]
[341571011,1731005452630,-500.0,0.00028217,2]
[341571012,1731005452641,-500.80379326,0.00028217,2]
[341571013,1731005452651,-571.33902267,0.00028217,2]
[341571014,1731005452660,-500.0,0.00028217,2]
[341571015,1731005452670,-312.78284184,0.00028217,2]
[341571016,1731005452680,-500.0,0.00028217,2]
[341571017,1731005452689,-500.0,0.00028217,2]
[341571018,1731005452699,-828.57,0.00028217,2]
[341571019,1731005452709,-500.0,0.00028217,2]
[341571020,1731005452719,-502.46180163,0.00028217,2]
[341571021,1731005452728,-570.22,0.00028217,2]
[341571022,1731005452738,-500.0,0.00028217,2]
[341571023,1731005452747,-500.0,0.00028217,2]
[341571024,1731005452758,-500.0,0.00028217,2]
[341571025,1731005452767,-500.0,0.00028217,2]
[341571026,1731005452778,-650.71,0.00028217,2]
[341571027,1731005452788,-500.0,0.00028217,2]
[341571028,1731005452798,-500.0,0.00028217,2]
[341571029,1731005452807,-500.0,0.00028217,2]
[341571030,1731005452817,-500.0,0.00028217,2]
[341571031,1731005452828,-500.0,0.00028217,2]
[341571032,1731005452838,-500.0,0.00028217,2]
[341571033,1731005452848,-500.0,0.00028217,2]
[341571034,1731005452857,-500.0,0.00028217,2]
[341571035,1731005452867,-430.51904251,0.00028217,2]
[341571036,1731005452877,-500.0,0.00028217,2]
[341571037,1731005452889,-500.0,0.00028217,2]
[341571038,1731005452899,-500.0,0.00028217,2]
[341571039,1731005452909,-500.0,0.00028217,2]
[341571040,1731005452920,-500.0,0.00028217,2]
[341571041,1731005452930,-500.0,0.00028217,2]
[341571042,1731005452940,-500.0,0.00028217,2]
[341571043,1731005452950,-500.0,0.00028217,2]
[341571044,1731005452961,-500.0,0.00028217,2]
[341571045,1731005452971,-500.0,0.00028217,2]
[341571046,1731005453244,-500.0,0.00028217,2]
[341571047,1731005453271,-500.0,0.00028217,2]
[341571048,1731005453285,-500.0,0.00028217,2]
[341571049,1731005453295,-1733.9,0.00028217,2]
[341571050,1731005453304,-500.0,0.00028217,2]
[341571051,1731005453314,-500.0,0.00028217,2]
[341571052,1731005453324,-1638.5,0.00028217,2]
[341571053,1731005453334,-500.0,0.00028217,2]
[341571054,1731005453343,-1855.35,0.00028217,2]
[341571055,1731005453353,-509.27,0.00028217,2]
[341571056,1731005453363,-500.0,0.00028217,2]
[341571057,1731005453373,-500.0,0.00028217,2]
[341571058,1731005453383,-930.12,0.00028217,2]
[341571059,1731005453392,-500.0,0.00028217,2]
[341571060,1731005453401,-500.0,0.00028217,2]
[341571061,1731005453412,-500.0,0.00028217,2]
[341571062,1731005453421,-500.0,0.00028217,2]
[341571063,1731005453431,-500.0,0.00028217,2]
[341571064,1731005453441,-500.0,0.00028217,2]
[341571065,1731005453451,-500.0,0.00028217,2]
[341571066,1731005453462,-500.0,0.00028217,2]
[341571067,1731005453471,-911.47,0.00028217,2]
[341571068,1731005453481,-1629.74,0.00028217,2]
[341571069,1731005453491,-500.0,0.00028217,2]
[341571070,1731005453500,-578.59,0.00028217,2]
[341571071,1731005453510,-500.0,0.00028217,2]
[341571072,1731005453520,-1433.46,0.00028217,2]
[341571073,1731005453529,-298.213325,0.00028217,2]
[341571074,1731005453539,-500.0,0.00028217,2]
[341571075,1731005453549,-500.0,0.00028217,2]
[341571076,1731005453559,-2481.61,0.00028217,2]
[341571077,1731005453569,-518.14,0.00028217,2]
[341571078,1731005453580,-500.0,0.00028217,2]
[341571079,1731005453589,-1002.64,0.00028217,2]
[341571080,1731005453598,-1037.98,0.00028217,2]
[341571081,1731005453608,-500.0,0.00028217,2]
[341571082,1731005453619,-500.0,0.00028217,2]
[341571083,1731005453628,-4139.66,0.00028217,2]
[341571084,1731005453638,-892.76,0.00028217,2]
[341571085,1731005453647,-500.0,0.00028217,2]
[341571086,1731005453656,-647.31,0.00028217,2]
[341571087,1731005453666,-1348.35,0.00028217,2]
[341571088,1731005453675,-500.0,0.00028217,2]
[341571089,1731005453684,-500.0,0.00028217,2]
[341571090,1731005453693,-500.0,0.00028217,2]
[341571091,1731005453702,-1734.61,0.00028217,2]
[341571092,1731005453711,-589.84,0.00028217,2]
[341571093,1731005453721,-700.0,0.00028217,2]
[341571094,1731005453730,-500.0,0.00028217,2]
[341571095,1731005453739,-500.0,0.00028217,2]
[341571096,1731005453748,-500.0,0.00028217,2]
[341571097,1731005453758,-500.0,0.00028217,2]
[341571098,1731005453767,-521.2,0.00028217,2]
[341571099,1731005453777,-500.0,0.00028217,2]
[341571100,1731005453786,-500.0,0.00028217,2]
[341571101,1731005453795,-500.0,0.00028217,2]
[341571102,1731005453805,-500.0,0.00028217,2]
[341571103,1731005453814,-1185.81,0.00028217,2]
[341571104,1731005453823,-500.0,0.00028217,2]
[341571105,1731005453833,-512.80805188,0.00028217,2]
[341571106,1731005453843,-500.0,0.00028217,2]
[341571107,1731005453853,-352.26169984,0.00028217,2]
[341571108,1731005453862,-500.0,0.00028217,2]
[341571109,1731005453873,-500.0,0.00028217,2]
[341571110,1731005453883,-500.0,0.00028217,2]
[341571111,1731005453893,-904.95,0.00028217,2]
[341571112,1731005453902,-500.0,0.00028217,2]
[341571113,1731005453913,-500.0,0.00028217,2]
[341571114,1731005453922,-500.0,0.00028217,2]
[341571115,1731005453933,-1074.81,0.00028217,2]
[341571116,1731005453943,-500.0,0.00028217,2]
[341571117,1731005453954,-500.0,0.00028217,2]
[341571118,1731005453966,-849.45,0.00028217,2]
[341571119,1731005453975,-500.0,0.00028217,2]
[341571120,1731005453985,-500.0,0.00028217,2]
[341571121,1731005453995,-1215.48,0.00028217,2]
[341571122,1731005454004,-500.0,0.00028217,2]
[341571123,1731005454014,-500.0,0.00028217,2]
[341571124,1731005454024,-837.56,0.00028217,2]
[341571125,1731005454033,-500.0,0.00028217,2]
[341571126,1731005454043,-1493.93,0.00028217,2]
[341571127,1731005454052,-500.0,0.00028217,2]
[341571128,1731005454062,-500.0,0.00028217,2]
[341571129,1731005454071,-500.0,0.00028217,2]
[341571130,1731005454086,-652.59,0.00028217,2]
[341571131,1731005454096,-500.0,0.00028217,2]
[341571132,1731005454105,-892.46,0.00028217,2]
[341571133,1731005454115,-1134.06,0.00028217,2]
[341571134,1731005454124,-500.0,0.00028217,2]
[341571135,1731005454133,-500.0,0.00028217,2]
[341571136,1731005454143,-500.0,0.00028217,2]
[341571137,1731005454152,-500.0,0.00028217,2]
[341571138,1731005454162,-500.0,0.00028217,2]
[341571139,1731005454171,-511.27,0.00028217,2]
[341571140,1731005454181,-500.0,0.00028217,2]
[341571141,1731005454191,-739.93,0.00028217,2]
[341571142,1731005454200,-500.0,0.00028217,2]
[341571143,1731005454210,-500.0,0.00028217,2]
[341571144,1731005454220,-500.0,0.00028217,2]
[341571145,1731005454233,-1581.39,0.00028217,2]
[341571146,1731005454243,-500.0,0.00028217,2]
[341571147,1731005454252,-500.0,0.00028217,2]
[341571148,1731005454262,-500.0,0.00028217,2]
[341571149,1731005454273,-500.0,0.00028217,2]
[341571150,1731005454282,-956.92,0.00028217,2]
[341571151,1731005454292,-500.0,0.00028217,2]
[341571152,1731005454304,-500.0,0.00028217,2]
[341571153,1731005454314,-500.0,0.00028217,2]
[341571154,1731005454326,-1000.0,0.00028217,15]
[341571155,1731005454335,-500.0,0.00028217,2]
[341571156,1731005454344,-605.61,0.00028217,2]
[341571157,1731005454354,-500.0,0.00028217,2]
[341571158,1731005454364,-922.75,0.00028217,2]
[341571159,1731005454374,-500.0,0.00028217,2]
[341571160,1731005454383,-500.0,0.00028217,2]
[341571161,1731005454393,-500.0,0.00028217,2]
[341571162,1731005454402,-919.73,0.00028217,2]
[341571163,1731005454412,-500.0,0.00028217,2]
[341571164,1731005454421,-1751.48,0.00028217,2]
[341571165,1731005454431,-500.0,0.00028217,2]
[341571166,1731005454440,-973.17,0.00028217,2]
[341571167,1731005454449,-510.51,0.00028217,2]
[341571168,1731005454459,-500.0,0.00028217,2]
[341571169,1731005454468,-967.16,0.00028217,2]
[341571170,1731005454478,-500.0,0.00028217,2]
[341571171,1731005454488,-500.0,0.00028217,2]
[341571172,1731005454498,-500.0,0.00028217,2]
[341571173,1731005454507,-500.0,0.00028217,2]
[341571174,1731005454516,-500.0,0.00028217,2]
[341571175,1731005454526,-500.0,0.00028217,2]
[341571176,1731005454535,-500.0,0.00028217,2]
[341571177,1731005454545,-1802.27,0.00028217,2]
[341571178,1731005454554,-1247.64,0.00028217,2]
[341571179,1731005454564,-500.0,0.00028217,2]
[341571180,1731005454573,-500.0,0.00028217,2]
[341571181,1731005454583,-1705.41,0.00028217,2]
[341571182,1731005454592,-500.0,0.00028217,2]
[341571183,1731005454601,-500.0,0.00028217,2]
[341571184,1731005454610,-884.38,0.00028217,2]
[341571185,1731005454619,-1976.45,0.00028217,2]
[341571186,1731005454629,-500.0,0.00028217,2]
[341571187,1731005454638,-500.0,0.00028217,2]
[341571188,1731005454647,-838.0,0.00028217,2]
[341571189,1731005454656,-500.0,0.00028217,2]
[341571190,1731005454666,-500.0,0.00028217,2]
[341571191,1731005454675,-500.0,0.00028217,2]
[341571192,1731005454684,-1439.59,0.00028217,2]
[341571193,1731005454694,-919.11,0.00028217,2]
[341571194,1731005454703,-500.0,0.00028217,2]
[341571195,1731005454712,-1000.0,0.00028217,10]
[341571196,1731005454721,-409.02427463,0.00028217,2]
[341571197,1731005454731,-500.0,0.00028217,2]
[341571198,1731005454740,-826.38,0.00028217,2]
[341571199,1731005454750,-542.42521425,0.00028217,2]
[341571200,1731005454759,-500.0,0.00028217,2]
[341571201,1731005454768,-500.0,0.00028217,2]
[341571202,1731005454778,-500.0,0.00028217,2]
[341571203,1731005454787,-500.0,0.00028217,2]
[341571204,1731005454796,-518.35,0.00028217,2]
[341571205,1731005454806,-500.0,0.00028217,2]
[341571206,1731005454815,-500.0,0.00028217,2]
[341571207,1731005454825,-500.0,0.00028217,2]
[341571208,1731005454834,-1009.6,0.00028217,2]
[341571209,1731005454843,-1002.05,0.00028217,2]
[341571210,1731005454853,-2527.2,0.00028217,2]
[341571211,1731005454862,-1144.57,0.00028217,2]
[341571212,1731005454871,-500.0,0.00028217,2]
[341571213,1731005454881,-501.93075983,0.00028217,2]
[341571214,1731005454890,-1071.74,0.00028217,2]
[341571215,1731005454899,-500.0,0.00028217,2]
[341571216,1731005454908,-1188.09,0.00028217,2]
[341571217,1731005454918,-500.0,0.00028217,2]
[341571218,1731005454929,-500.0,0.00028217,2]
[341571219,1731005454940,-500.0,0.00028217,2]
[341571220,1731005454951,-500.0,0.00028217,2]
[341571221,1731005454962,-500.0,0.00028217,2]
[341571222,1731005454972,-845.34,0.00028217,2]
[341571223,1731005454983,-578.54,0.00028217,2]
[341571224,1731005454992,-500.0,0.00028217,2]
[341571225,1731005455002,-500.0,0.00028217,2]
[341571226,1731005455011,-500.0,0.00028217,2]
[341571227,1731005455020,-500.0,0.00028217,2]
[341571228,1731005455029,-528.65,0.00028217,2]
[341571229,1731005455038,-1081.76,0.00028217,2]
[341571230,1731005455050,-1104.64,0.00028217,2]
[341571231,1731005455059,-500.0,0.00028217,2]
[341571232,1731005455070,-500.0,0.00028217,2]
[341571233,1731005455081,-500.0,0.00028217,2]
[341571234,1731005455090,-500.0,0.00028217,2]
[341571235,1731005455099,-1167.6,0.00028217,2]
[341571236,1731005455110,-500.0,0.00028217,2]
[341571237,1731005455122,-529.22,0.00028217,2]
[341571238,1731005455131,-500.0,0.00028217,2]
[341571239,1731005455141,-500.0,0.00028217,2]
[341571240,1731005455153,-500.0,0.00028217,2]
[341571241,1731005455162,-1599.73,0.00028217,2]
[341571242,1731005455172,-514.2,0.00028217,2]
[341571243,1731005455181,-500.0,0.00028217,2]
[341571244,1731005455191,-500.0,0.00028217,2]
[341571245,1731005455202,-505.41063664,0.00028217,2]
[341571246,1731005455211,-3373.99,0.00028217,2]
[341571247,1731005455220,-740.85,0.00028217,2]
[341571248,1731005455231,-500.0,0.00028217,2]
[341571249,1731005455244,-1079.81,0.00028217,2]
[341571250,1731005455255,-500.0,0.00028217,2]
[341571251,1731005455267,-1422.9877551,0.00028217,2]
[341571252,1731005455301,-45.7822449,0.00028217,2]
[341571253,1731005455310,-500.0,0.00028217,2]
[341571254,1731005455319,-1540.59,0.00028217,2]
[341571255,1731005455330,-500.0,0.00028217,2]
[341571256,1731005455340,-548.0061269,0.00028217,2]
[341571257,1731005455349,-500.0,0.00028217,2]
[341571258,1731005455358,-500.0,0.00028217,2]
[341571259,1731005455367,-1199.97,0.00028217,2]
[341571260,1731005455377,-580.59,0.00028217,2]
[341571261,1731005455386,-915.86,0.00028217,2]
[341571262,1731005455395,-500.0,0.00028217,2]
[341571263,1731005455405,-706.05,0.00028217,2]
[341571264,1731005455414,-500.0,0.00028217,2]
[341571265,1731005455423,-500.0,0.00028217,2]
[341571266,1731005455434,-1307.37,0.00028217,2]
[341571267,1731005455443,-500.0,0.00028217,2]
[341571268,1731005455455,-500.0,0.00028217,2]
[341571269,1731005455464,-2645.77,0.00028217,2]
[341571270,1731005455474,-500.0,0.00028217,2]
[341571271,1731005455484,-294.56965311,0.00028217,2]
[341571272,1731005455495,-500.0,0.00028217,2]
[341571273,1731005455505,-500.0,0.00028217,2]
[341571274,1731005455515,-500.0,0.00028217,2]
[341571275,1731005455524,-500.8620059,0.00028217,2]
[341571276,1731005455533,-1298.14,0.00028217,2]
[341571277,1731005455543,-500.0,0.00028217,2]
[341571278,1731005455553,-500.0,0.00028217,2]
[341571279,1731005455563,-500.0,0.00028217,2]
[341571280,1731005455571,-500.0,0.00028217,2]
[341571281,1731005455583,-500.0,0.00028217,2]
[341571282,1731005455593,-570.58,0.00028217,2]
[341571283,1731005455692,-2471.29,0.00028217,2]
[341571284,1731005455702,-1311.87,0.00028217,2]
[341571285,1731005455711,-500.0,0.00028217,2]
[341571286,1731005455720,-820.03,0.00028217,2]
[341571287,1731005455730,-500.0,0.00028217,2]
[341571288,1731005455739,-500.0,0.00028217,2]
[341571289,1731005455748,-452.89416009,0.00028217,2]
[341571290,1731005455759,-441.99583991,0.00028217,2]
[341571291,1731005455768,-500.0,0.00028217,2]
[341571292,1731005455778,-500.0,0.00028217,2]
[341571293,1731005455787,-372.427196,0.00028217,2]
[341571294,1731005455845,-127.572804,0.00028217,2]
[341571295,1731005455854,-2081.12,0.00028217,2]
[341571296,1731005455863,-920.52,0.00028217,2]
[341571297,1731005455872,-500.0,0.00028217,2]
[341571298,1731005455881,-921.26,0.00028217,2]
[341571299,1731005455891,-903.72,0.00028217,2]
[341571300,1731005455899,-500.0,0.00028217,2]
[341571301,1731005455908,-663.16,0.00028217,2]
[341571302,1731005455918,-1075.23,0.00028217,2]
[341571303,1731005455927,-1606.01,0.00028217,2]
[341571304,1731005455935,-500.0,0.00028217,2]
[341571305,1731005455945,-500.0,0.00028217,2]
[341571306,1731005455954,-500.0,0.00028217,2]
[341571307,1731005455963,-500.0,0.00028217,2]
[341571308,1731005455972,-2000.0,0.00028217,2]
[341571309,1731005455981,-500.0,0.00028217,2]
[341571310,1731005455991,-500.0,0.00028217,2]
[341571311,1731005456000,-500.0,0.00028217,2]
[341571312,1731005456010,-500.0,0.00028217,2]
[341571313,1731005456019,-933.57,0.00028217,2]
[341571314,1731005456028,-656.31,0.00028217,2]
[341571315,1731005456038,-1316.03,0.00028217,2]
[341571316,1731005456047,-511.86,0.00028217,2]
[341571317,1731005456056,-2787.88,0.00028217,2]
[341571318,1731005456066,-1288.89,0.00028217,2]
[341571319,1731005456076,-1233.83,0.00028217,2]
[341571320,1731005456085,-500.0,0.00028217,2]
[341571321,1731005456095,-500.0,0.00028217,2]
[341571322,1731005456104,-1649.02,0.00028217,2]
[341571323,1731005456113,-500.0,0.00028217,2]
[341571324,1731005456123,-500.0,0.00028217,2]
[341571325,1731005456132,-500.0,0.00028217,2]
[341571326,1731005456141,-1277.07,0.00028217,2]
[341571327,1731005456150,-505.7332905,0.00028217,2]
[341571328,1731005456160,-500.0,0.00028217,2]
[341571329,1731005456169,-795.32,0.00028217,2]
[341571330,1731005456178,-500.0,0.00028217,2]
[341571331,1731005456188,-1053.58,0.00028217,2]
[341571332,1731005456197,-500.0,0.00028217,2]
[341571333,1731005456205,-500.0,0.00028217,2]
[341571334,1731005456215,-1483.3,0.00028217,2]
[341571335,1731005456224,-500.0,0.00028217,2]
[341571336,1731005456233,-500.0,0.00028217,2]
[341571337,1731005456247,-1139.35,0.00028217,2]
[341571338,1731005456257,-500.0,0.00028217,2]
[341571339,1731005456266,-517.9849231,0.00028217,2]
[341571340,1731005456278,-500.0,0.00028217,2]
[341571341,1731005456287,-1757.95,0.00028217,2]
[341571342,1731005456297,-722.47,0.00028217,2]
[341571343,1731005456306,-569.02,0.00028217,2]
[341571344,1731005456315,-500.0,0.00028217,2]
[341571345,1731005456326,-500.0,0.00028217,2]
[341571346,1731005456335,-500.0,0.00028217,2]
[341571347,1731005456344,-2079.68,0.00028217,2]
[341571348,1731005456354,-500.0,0.00028217,2]
[341571349,1731005456364,-603.96302426,0.00028217,2]
[341571350,1731005456374,-500.0,0.00028217,2]
[341571351,1731005456384,-500.0,0.00028217,2]
[341571352,1731005456393,-500.0,0.00028217,2]
[341571353,1731005456403,-500.0,0.00028217,2]
[341571354,1731005456411,-500.0,0.00028217,2]
[341571355,1731005456421,-500.0,0.00028217,2]
[341571356,1731005456431,-500.0,0.00028217,2]
[341571357,1731005456440,-500.0,0.00028217,2]
[341571358,1731005456449,-500.0,0.00028217,2]
[341571359,1731005456459,-582.61026355,0.00028217,2]
[341571360,1731005456468,-500.0,0.00028217,2]
[341571361,1731005456478,-621.46,0.00028217,2]
[341571362,1731005456487,-4585.15,0.00028217,2]
[341571363,1731005456497,-500.0,0.00028217,2]
[341571364,1731005456506,-500.0,0.00028217,2]
[341571365,1731005456516,-500.0,0.00028217,2]
[341571366,1731005456525,-500.0,0.00028217,2]